[Event "SWE-ch Masters Elite 2019"]
[Site "Eskilstuna"]
[Date "2019.07.12"]
[Round "7.2"]
[White "Ernst, Thomas"]
[Black "Wengholm, Anders"]
[Result "1-0"]
[ECO "B81"]
[WhiteElo "2335"]
[BlackElo "2219"]
[Annotator "NA"]
[PlyCount "55"]
[EventDate "2019.07.06"]
[EventType "tourn"]
[EventCountry "SWE"]
[SourceTitle "playchess.com"]
[Source "ChessBase"]
[SourceQuality "1"]
[TimeControl "40/5400+30:1800+30"]

1. e4 {[%emt 0:00:00]} c5 {[%emt 0:00:00]} 2. Nf3 {[%emt 0:00:00]} e6 {[%emt 0:00:15]} 3. d4 {[%emt 0:00:25]} cxd4 4. Nxd4 {[%emt 0:00:07]} Nf6 {[%emt 0:00:22]} 5. Nc3 {[%emt 0:00:07]} d6 {[%emt 0:00:07]} 6. g4 {[%emt 0:00:19]} h6 {[%emt 0:00:15]} 7. h3 {[%emt 0:00:14]} a6 {[%emt 0:01:12]} 8. Bg2 {[%emt 0:00:39]} Nfd7 {[%emt 0:00:26]} 9. b3 {[%emt 0:02:56]} Qc7 {[%emt 0:01:59]} 10. Bb2 {[%emt 0:00:46]} g5 {[%emt 0:00:24]} 11. Qd2 {[%emt 0:02:58]} Be7 {[%emt 0:02:27]} 12. Nf5 {[%emt 0:16:01]} Ne5 {[%emt 0:02:08]} 13. Nxe7 {[%emt 0:00:27]} Kxe7 {[%emt 0:00:02]} 14. O-O-O {[%emt 0:00:45]} b5 {[%emt 0:17:06]} 15. f4 {[%emt 0:08:05]} gxf4 {[%emt 0:01:13]} 16. Qxf4 {[%emt 0:00:10]} b4 {[%emt 0:00:49]} 17. Rhf1 {[%emt 0:07:38]} Nbd7 {[%emt 0:03:45]} 18. Na4 {[%emt 0:10:15]} Rh7 {[%emt 0:01:03]} 19. Rd4 {[%emt 0:13:28]} a5 {[%emt 0:01:47]} 20. Kb1 {[%emt 0:05:44]} Ba6 {[%emt 0:19:51]} 21. Rfd1 {[%emt 0:00:55]} Rc8 {[%emt 0:04:43]} 22. Qd2 {[%emt 0:04:25]} Bb5 {[%emt 0:05:08]} 23. Rxd6 {[%emt 0:00:32]} Bxa4 {[%emt 0:00:07]} 24. bxa4 {[%emt 0:01:13]} f6 {[%emt 0:00:31]} 25. Bf1 {[%emt 0:01:18]} Rhh8 {[%emt 0:09:47]} 26. Bb5 {[%emt 0:01:35]} Nc5 {[%emt 0:17:57]} 27. Qf4 {[%emt 0:03:02]} Rcd8 {[%emt 0:08:34]} 28. Bxe5 {[%emt 0:05:38]} 1-0

[Event "SWE-ch Masters Elite 2019"]
[Site "Eskilstuna"]
[Date "2019.07.12"]
[Round "7.3"]
[White "Malmstig, Erik"]
[Black "Rydstrom, Tom"]
[Result "1/2-1/2"]
[ECO "A25"]
[WhiteElo "2357"]
[BlackElo "2345"]
[Annotator "NA"]
[PlyCount "73"]
[EventDate "2019.07.06"]
[EventType "tourn"]
[EventCountry "SWE"]
[SourceTitle "playchess.com"]
[Source "ChessBase"]
[SourceQuality "1"]
[TimeControl "40/5400+30:1800+30"]

1. c4 {[%emt 0:00:00]} e5 {[%emt 0:00:08]} 2. g3 {[%emt 0:00:00]} Nc6 {[%emt 0:00:07]} 3. Bg2 {[%emt 0:00:07]} Bc5 {[%emt 0:00:23]} 4. Nc3 {[%emt 0:00:46]} a6 {[%emt 0:00:27]} 5. e3 {[%emt 0:00:56]} d6 {[%emt 0:00:03]} 6. Nge2 {[%emt 0:00:09]} Ba7 {[%emt 0:00:03]} 7. O-O {[%emt 0:01:22]} h5 {[%emt 0:00:12]} 8. h3 {[%emt 0:06:48]} h4 {[%emt 0:00:07]} 9. g4 {[%emt 0:00:04]} f5 {[%emt 0:00:02]} 10. f3 {[%emt 0:00:35]} Nf6 {[%emt 0:02:34]} 11. d4 {[%emt 0:08:58]} Bd7 {[%emt 0:02:43]} 12. Kh1 {[%emt 0:05:08]} Qe7 {[%emt 0:19:57]} 13. b4 {[%emt 0:09:57]} Qf7 {[%emt 0:14:21]} 14. b5 {[%emt 0:05:46]} axb5 {[%emt 0:00:57]} 15. Nxb5 {[%emt 0:08:00]} Bb6 {[%emt 0:02:11]} 16. c5 {[%emt 0:01:24]} dxc5 {[%emt 0:00:05]} 17. dxc5 {[%emt 0:00:42]} Ba5 {[%emt 0:00:08]} 18. e4 {[%emt 0:06:06]} f4 {[%emt 0:01:07]} 19. Nec3 {[%emt 0:08:18]} Nd4 {[%emt 0:08:18]} 20. Qd3 {[%emt 0:04:19]} Be6 {[%emt 0:00:29]} 21. Nd5 {[%emt 0:07:12]} Nxb5 {[%emt 0:11:57]} 22. Nxf6+ {[%emt 0:03:43]} gxf6 {[%emt 0:00:33]} 23. Qxb5+ {[%emt 0:00:05]} c6 {[%emt 0:00:26]} 24. Qb2 {[%emt 0:00:56]} O-O {[%emt 0:00:53]} 25. Rd1 {[%emt 0:08:02]} Rfd8 {[%emt 0:00:09]} 26. Bd2 {[%emt 0:01:01]} Bxd2 {[%emt 0:00:44]} 27. Rxd2 {[%emt 0:00:03]} Rxd2 {[%emt 0:00:16]} 28. Qxd2 {[%emt 0:00:04]} Qe7 {[%emt 0:10:06]} 29. Qf2 {[%emt 0:02:07]} Ra5 {[%emt 0:04:43]} 30. Rc1 {[%emt 0:02:24]} Rxa2 {[%emt 0:00:20]} 31. Qxh4 {[%emt 0:00:24]} Kg7 {[%emt 0:06:09]} 32. Rg1 {[%emt 0:02:53]} Ra8 {[%emt 0:00:15]} 33. Rb1 {[%emt 0:02:30]} Ra5 {[%emt 0:01:49]} 34. Rg1 {[%emt 0:01:01]} Ra8 {[%emt 0:01:28]} 35. Rd1 {[%emt 0:00:24]} Ra2 {[%emt 0:01:38]} 36. Rg1 {[%emt 0:00:44]} Ra8 {[%emt 0:01:56]} 37. Rd1 {[%emt 0:00:13]} 1/2-1/2

[Event "SWE-ch Masters Elite 2019"]
[Site "Eskilstuna"]
[Date "2019.07.12"]
[Round "7.4"]
[White "Seo, Jung Min"]
[Black "Logdahl, Harald"]
[Result "1-0"]
[ECO "A44"]
[WhiteElo "2399"]
[BlackElo "2269"]
[Annotator "ChessBase"]
[PlyCount "75"]
[EventDate "2019.07.06"]
[EventType "tourn"]
[EventCountry "SWE"]
[SourceTitle "playchess.com"]
[Source "ChessBase"]
[SourceQuality "1"]
[TimeControl "40/5400+30:1800+30"]

1. d4 {[%emt 0:00:00]} c5 {[%emt 0:10:28]} 2. d5 {[%emt 0:04:17]} e5 {[%emt 0:00:07]} 3. e4 {[%emt 0:03:34]} d6 {[%emt 0:00:05]} 4. Nc3 {[%emt 0:00:38]} Be7 {[%emt 0:00:12]} 5. Nf3 {[%emt 0:00:27]} Bg4 {[%emt 0:01:18]} 6. h3 {[%emt 0:00:06]} Bxf3 {[%emt 0:00:07]} 7. Qxf3 {[%emt 0:00:02]} a6 {[%emt 0:03:16]} 8. Qg3 {[%emt 0:05:05]} Kf8 {[%emt 0:04:05]} 9. h4 {[%emt 0:00:13]} b5 {[%emt 0:01:33]} 10. a4 {[%emt 0:00:14]} b4 {[%emt 0:01:15]} 11. Nd1 {[%emt 0:01:07]} Nf6 {[%emt 0:01:01]} 12. Qf3 {[%emt 0:00:44]} h5 {[%emt 0:08:30]} 13. Ne3 {[%emt 0:01:34]} g6 {[%emt 0:00:09]} 14. g3 {[%emt 0:03:01]} Nbd7 {[%emt 0:03:53]} 15. a5 {[%emt 0:02:09]} Ra7 {[%emt 0:09:49]} 16. Nc4 {[%emt 0:02:32]} Ne8 {[%emt 0:01:52]} 17. Be2 {[%emt 0:04:29]} Nc7 {[%emt 0:03:45]} 18. Bd2 {[%emt 0:05:24]} Nb5 {[%emt 0:00:16]} 19. c3 {[%emt 0:00:06]} bxc3 {[%emt 0:04:11]} 20. bxc3 {[%emt 0:00:02]} Kg7 {[%emt 0:00:39]} 21. O-O {[%emt 0:02:11]} Nf6 {[%emt 0:03:35]} 22. Qd3 {[%emt 0:03:16]} Ng4 {[%emt 0:04:38]} 23. Kg2 {[%emt 0:03:12]} Nh6 {[%emt 0:02:24]} 24. Nb6 {[%emt 0:04:55]} f6 {[%emt 0:07:58]} 25. Qf3 {[%emt 0:02:12]} Qe8 {[%emt 0:03:47]} 26. Bd3 {[%emt 0:00:36]} g5 {[%emt 0:09:43]} 27. Rh1 {[%emt 0:02:15]} Ng4 {[%emt 0:04:50]} 28. Qe2 {[%emt 0:02:34]} Qg6 {[%emt 0:04:24]} 29. Rae1 {[%emt 0:01:43]} Nc7 {[%emt 0:02:18]} 30. Rh3 {[%emt 0:02:02]} Nb5 {[%emt 0:00:40]} 31. Reh1 {[%emt 0:00:37]} Rb7 {[%emt 0:03:17]} 32. f3 {[%emt 0:00:51]} Bd8 {[%emt 0:00:49]} 33. fxg4 {[%emt 0:00:19]} hxg4 {[%emt 0:00:30]} 34. Qxg4 {[%emt 0:00:11]} gxh4 {[%emt 0:00:51]} 35. Qxg6+ {[%emt 0:00:07]} Kxg6 {[%emt 0:00:03]} 36. Rxh4 {[%emt 0:00:52]} Rxh4 {[%emt 0:00:04]} 37. gxh4 {[%emt 0:00:14]} Bxb6 {[%emt 0:01:14]} 38. axb6 {[%emt 0:00:05]} 1-0

[Event "SWE-ch Masters Elite 2019"]
[Site "Eskilstuna"]
[Date "2019.07.12"]
[Round "7.5"]
[White "Andersson, Tommy"]
[Black "Lindberg, Bengt"]
[Result "1/2-1/2"]
[ECO "E15"]
[WhiteElo "2390"]
[BlackElo "2384"]
[Annotator "NA"]
[PlyCount "113"]
[EventDate "2019.07.06"]
[EventType "tourn"]
[EventCountry "SWE"]
[SourceTitle "playchess.com"]
[Source "ChessBase"]
[SourceQuality "1"]
[TimeControl "40/5400+30:1800+30"]

1. d4 {[%emt 0:00:00]} Nf6 {[%emt 0:00:00]} 2. c4 {[%emt 0:00:00]} e6 {[%emt 0:00:00]} 3. Nf3 {[%emt 0:00:00]} b6 {[%emt 0:00:00]} 4. g3 {[%emt 0:00:00]} Ba6 {[%emt 0:00:09]} 5. Qa4 {[%emt 0:00:00]} Bb7 {[%emt 0:00:34]} 6. Bg2 {[%emt 0:00:00]} c5 {[%emt 0:00:21]} 7. dxc5 {[%emt 0:00:17]} bxc5 {[%emt 0:00:15]} 8. O-O {[%emt 0:00:16]} Be7 {[%emt 0:00:15]} 9. Nc3 {[%emt 0:00:50]} O-O {[%emt 0:00:23]} 10. Rd1 {[%emt 0:00:16]} Qb6 {[%emt 0:00:30]} 11. Bf4 {[%emt 0:00:14]} d6 {[%emt 0:00:35]} 12. a3 {[%emt 0:00:26]} Nbd7 {[%emt 0:18:10]} 13. Rab1 {[%emt 0:10:29]} Rfb8 {[%emt 0:10:51]} 14. b4 {[%emt 0:06:37]} a6 {[%emt 0:00:48]} 15. Qc2 {[%emt 0:13:25]} Qc7 {[%emt 0:20:54]} 16. b5 {[%emt 0:07:26]} h6 {[%emt 0:10:03]} 17. e4 {[%emt 0:09:40]} e5 {[%emt 0:09:58]} 18. Be3 {[%emt 0:05:25]} axb5 {[%emt 0:02:32]} 19. Nxb5 {[%emt 0:00:42]} Qa5 {[%emt 0:01:03]} 20. Nh4 {[%emt 0:01:58]} Bf8 {[%emt 0:09:30]} 21. Nf5 {[%emt 0:03:28]} Bc6 {[%emt 0:00:08]} 22. Nfxd6 {[%emt 0:22:50]} Bxd6 {[%emt 0:00:04]} 23. Rxd6 {[%emt 0:00:10]} Bxb5 {[%emt 0:00:05]} 24. cxb5 {[%emt 0:00:22]} Rxb5 {[%emt 0:00:05]} 25. Rbd1 {[%emt 0:01:10]} Rab8 {[%emt 0:01:16]} 26. Rxd7 {[%emt 0:09:47]} Nxd7 {[%emt 0:01:01]} 27. Rxd7 {[%emt 0:00:04]} Qe1+ {[%emt 0:00:25]} 28. Bf1 {[%emt 0:00:05]} Rb1 {[%emt 0:00:47]} 29. Qc4 {[%emt 0:00:53]} Kh7 {[%emt 0:01:15]} 30. Kg2 {[%emt 0:01:14]} R8b2 {[%emt 0:01:49]} 31. Bd3 {[%emt 0:05:48]} Qxe3 {[%emt 0:06:29]} 32. Qxf7 {[%emt 0:00:30]} Qg5 {[%emt 0:00:13]} 33. Bxb1 {[%emt 0:01:21]} Rxb1 {[%emt 0:00:05]} 34. h4 {[%emt 0:00:14]} Qg6 {[%emt 0:00:15]} 35. Qxg6+ {[%emt 0:00:14]} Kxg6 {[%emt 0:00:06]} 36. Rd5 {[%emt 0:00:45]} Kf6 {[%emt 0:00:47]} 37. Rxc5 {[%emt 0:00:28]} Rb3 {[%emt 0:00:36]} 38. a4 {[%emt 0:00:15]} Rb4 {[%emt 0:00:36]} 39. Rc6+ {[%emt 0:01:03]} Kf7 {[%emt 0:00:25]} 40. a5 {[%emt 0:00:33]} Rxe4 {[%emt 0:00:35]} 41. a6 {[%emt 0:30:07]} Ra4 {[%emt 0:30:28]} 42. h5 {[%emt 0:00:00]} e4 {[%emt 0:00:00]} 43. Kh3 {[%emt 0:00:00]} Ke7 {[%emt 0:00:00]} 44. g4 {[%emt 0:00:00]} Ra3+ {[%emt 0:00:00]} 45. Kh4 {[%emt 0:00:00]} e3 {[%emt 0:00:00]} 46. fxe3 {[%emt 0:00:00]} Rxe3 {[%emt 0:00:00]} 47. Rc7+ {[%emt 0:00:11]} Kf6 {[%emt 0:00:00]} 48. Rc6+ {[%emt 0:02:42]} Kf7 {[%emt 0:00:00]} 49. a7 {[%emt 0:00:54]} Ra3 {[%emt 0:00:00]} 50. Rc7+ {[%emt 0:00:27]} Kf6 {[%emt 0:00:00]} 51. Rb7 {[%emt 0:00:23]} g5+ {[%emt 0:00:00]} 52. hxg6 {[%emt 0:00:05]} Kxg6 {[%emt 0:00:00]} 53. Rb6+ {[%emt 0:00:28]} Kg7 {[%emt 0:00:00]} 54. Rb7+ {[%emt 0:00:11]} Kg6 {[%emt 0:00:00]} 55. Rc7 {[%emt 0:00:05]} Kf6 {[%emt 0:00:00]} 56. Rc6+ {[%emt 0:02:11]} Kg7 {[%emt 0:00:00]} 57. Rc7+ {[%emt 0:00:21]} 1/2-1/2

[Event "SWE-ch Masters Elite 2019"]
[Site "Eskilstuna"]
[Date "2019.07.13"]
[Round "8.1"]
[White "Cramling, Dan"]
[Black "Wengholm, Anders"]
[Result "0-1"]
[ECO "A21"]
[WhiteElo "2321"]
[BlackElo "2219"]
[Annotator "NA"]
[PlyCount "86"]
[EventDate "2019.07.06"]
[EventType "tourn"]
[EventCountry "SWE"]
[SourceTitle "playchess.com"]
[Source "ChessBase"]
[SourceQuality "1"]
[TimeControl "40/5400+30:1800+30"]

1. c4 {[%emt 0:12:58]} e5 {[%emt 0:01:00]} 2. Nc3 {[%emt 0:00:18]} Bb4 {[%emt 0:03:45]} 3. Nd5 {[%emt 0:00:23]} Ba5 {[%emt 0:03:42]} 4. b4 {[%emt 0:08:07]} c6 {[%emt 0:00:23]} 5. bxa5 {[%emt 0:00:57]} cxd5 {[%emt 0:00:09]} 6. cxd5 {[%emt 0:04:04]} Qxa5 {[%emt 0:00:39]} 7. e4 {[%emt 0:09:23]} Nf6 {[%emt 0:01:37]} 8. Qc2 {[%emt 0:01:12]} Na6 {[%emt 0:04:35]} 9. f3 {[%emt 0:03:24]} d6 {[%emt 0:01:17]} 10. Bb2 {[%emt 0:08:30]} Bd7 {[%emt 0:11:18]} 11. Bc3 {[%emt 0:02:30]} Qa3 {[%emt 0:09:50]} 12. Rb1 {[%emt 0:04:05]} O-O {[%emt 0:04:00]} 13. Rb3 {[%emt 0:06:15]} Qa4 {[%emt 0:08:40]} 14. Qb2 {[%emt 0:04:02]} Nxe4 {[%emt 0:04:20]} 15. Bxa6 {[%emt 0:09:41]} Nc5 {[%emt 0:10:27]} 16. Be2 {[%emt 0:07:33]} Nxb3 {[%emt 0:00:31]} 17. axb3 {[%emt 0:00:48]} Qh4+ {[%emt 0:00:49]} 18. g3 {[%emt 0:00:39]} Qh6 {[%emt 0:00:12]} 19. b4 {[%emt 0:00:58]} f5 {[%emt 0:08:06]} 20. h4 {[%emt 0:02:45]} Qg6 {[%emt 0:02:55]} 21. Kf2 {[%emt 0:00:15]} f4 {[%emt 0:09:30]} 22. g4 {[%emt 0:00:06]} e4 {[%emt 0:00:16]} 23. Nh3 {[%emt 0:00:53]} h5 {[%emt 0:04:14]} 24. g5 {[%emt 0:00:11]} Rae8 {[%emt 0:00:24]} 25. Bd4 {[%emt 0:02:40]} exf3 {[%emt 0:01:23]} 26. Bxf3 {[%emt 0:00:15]} Bg4 {[%emt 0:00:06]} 27. Qb3 {[%emt 0:04:23]} Qf5 {[%emt 0:01:29]} 28. Kg2 {[%emt 0:01:23]} Re3 {[%emt 0:03:23]} 29. dxe3 {[%emt 0:01:30]} Bxf3+ {[%emt 0:00:10]} 30. Kxf3 {[%emt 0:01:05]} fxe3+ {[%emt 0:00:34]} 31. Ke2 {[%emt 0:03:12]} Qf3+ {[%emt 0:00:15]} 32. Kd3 {[%emt 0:00:11]} e2+ {[%emt 0:00:59]} 33. Be3 {[%emt 0:01:15]} Re8 {[%emt 0:02:46]} 34. Kd2 {[%emt 0:00:37]} Qxh1 {[%emt 0:00:10]} 35. Kxe2 {[%emt 0:00:27]} Qxh3 {[%emt 0:00:07]} 36. Kd2 {[%emt 0:00:32]} Qg2+ {[%emt 0:00:54]} 37. Kc1 {[%emt 0:00:18]} Qh1+ {[%emt 0:00:46]} 38. Kc2 {[%emt 0:00:05]} Qe4+ {[%emt 0:00:21]} 39. Kd2 {[%emt 0:00:06]} Qxe3+ {[%emt 0:01:56]} 40. Qxe3 {[%emt 0:00:07]} Rxe3 {[%emt 0:00:07]} 41. Kxe3 {[%emt 0:30:04]} Kf7 {[%emt 0:30:02]} 42. Ke4 {[%emt 0:01:03]} Kg6 {[%emt 0:00:08]} 43. Kf4 {[%emt 0:00:10]} a6 {[%emt 0:00:10]} 0-1

[Event "SWE-ch Masters Elite 2019"]
[Site "Eskilstuna"]
[Date "2019.07.13"]
[Round "8.2"]
[White "Nyander, Joakim"]
[Black "Malmstig, Erik"]
[Result "1/2-1/2"]
[ECO "A25"]
[WhiteElo "2233"]
[BlackElo "2357"]
[Annotator "NA"]
[PlyCount "36"]
[EventDate "2019.07.06"]
[EventType "tourn"]
[EventCountry "SWE"]
[SourceTitle "playchess.com"]
[Source "ChessBase"]
[SourceQuality "1"]
[TimeControl "40/5400+30:1800+30"]

1. c4 {[%emt 0:00:00]} e5 {[%emt 0:00:18]} 2. g3 {[%emt 0:00:00]} Nc6 {[%emt 0:02:13]} 3. Nc3 {[%emt 0:02:36]} Bc5 {[%emt 0:00:10]} 4. Bg2 {[%emt 0:02:38]} a6 {[%emt 0:00:15]} 5. Nf3 {[%emt 0:01:48]} d6 {[%emt 0:01:48]} 6. O-O {[%emt 0:02:56]} Be6 {[%emt 0:03:04]} 7. d3 {[%emt 0:09:39]} h6 {[%emt 0:02:19]} 8. e3 {[%emt 0:03:37]} Ba7 {[%emt 0:01:34]} 9. Re1 {[%emt 0:04:56]} Qd7 {[%emt 0:01:00]} 10. d4 {[%emt 0:01:48]} Bg4 {[%emt 0:06:24]} 11. dxe5 {[%emt 0:03:56]} dxe5 {[%emt 0:03:45]} 12. Qxd7+ {[%emt 0:00:50]} Bxd7 {[%emt 0:00:09]} 13. b3 {[%emt 0:01:54]} Bc5 {[%emt 0:02:36]} 14. Rd1 {[%emt 0:01:47]} O-O-O {[%emt 0:03:27]} 15. Bb2 {[%emt 0:01:20]} f6 {[%emt 0:07:32]} 16. Rd2 {[%emt 0:14:37]} Bg4 {[%emt 0:03:13]} 17. h3 {[%emt 0:04:11]} Rxd2 {[%emt 0:04:35]} 18. Nxd2 {[%emt 0:00:13]} Bf8 {[%emt 0:01:02]} 1/2-1/2

[Event "SWE-ch Masters Elite 2019"]
[Site "Eskilstuna"]
[Date "2019.07.13"]
[Round "8.3"]
[White "Logdahl, Harald"]
[Black "Ernst, Thomas"]
[Result "1/2-1/2"]
[ECO "B30"]
[WhiteElo "2269"]
[BlackElo "2335"]
[Annotator "NA"]
[PlyCount "104"]
[EventDate "2019.07.06"]
[EventType "tourn"]
[EventCountry "SWE"]
[SourceTitle "playchess.com"]
[Source "ChessBase"]
[SourceQuality "1"]
[TimeControl "40/5400+30:1800+30"]

1. e4 {[%emt 0:00:00]} c5 {[%emt 0:00:00]} 2. Nc3 {[%emt 0:00:00]} Nc6 {[%emt 0:00:00]} 3. Bb5 {[%emt 0:00:00]} Nd4 {[%emt 0:00:33]} 4. Nf3 {[%emt 0:00:00]} Nf6 {[%emt 0:00:26]} 5. e5 {[%emt 0:02:20]} Nxb5 {[%emt 0:00:44]} 6. Nxb5 {[%emt 0:10:20]} Nd5 {[%emt 0:00:17]} 7. O-O {[%emt 0:01:12]} Nc7 {[%emt 0:05:33]} 8. a4 {[%emt 0:01:54]} Nxb5 {[%emt 0:04:26]} 9. axb5 {[%emt 0:00:06]} d5 {[%emt 0:00:59]} 10. exd6 {[%emt 0:00:27]} e6 {[%emt 0:01:48]} 11. d4 {[%emt 0:01:26]} Bxd6 {[%emt 0:00:25]} 12. Be3 {[%emt 0:07:52]} Qc7 {[%emt 0:00:39]} 13. dxc5 {[%emt 0:00:57]} Bxc5 {[%emt 0:00:29]} 14. Bxc5 {[%emt 0:00:23]} Qxc5 {[%emt 0:00:19]} 15. Qd4 {[%emt 0:02:05]} Qxd4 {[%emt 0:00:25]} 16. Nxd4 {[%emt 0:00:03]} Bd7 {[%emt 0:08:24]} 17. f4 {[%emt 0:03:37]} Kd8 {[%emt 0:02:04]} 18. Kf2 {[%emt 0:09:20]} Re8 {[%emt 0:03:20]} 19. c4 {[%emt 0:04:00]} Kc7 {[%emt 0:06:00]} 20. Rfe1 {[%emt 0:01:48]} f6 {[%emt 0:04:43]} 21. Ke3 {[%emt 0:06:54]} e5 {[%emt 0:05:28]} 22. fxe5 {[%emt 0:01:22]} Rxe5+ {[%emt 0:00:15]} 23. Kd3 {[%emt 0:03:07]} a6 {[%emt 0:09:31]} 24. bxa6 {[%emt 0:01:46]} Rxa6 {[%emt 0:01:03]} 25. Rxe5 {[%emt 0:05:16]} fxe5 {[%emt 0:00:29]} 26. Rxa6 {[%emt 0:00:30]} bxa6 {[%emt 0:00:07]} 27. Nf3 {[%emt 0:06:28]} Bc6 {[%emt 0:00:36]} 28. Nxe5 {[%emt 0:00:59]} Bxg2 {[%emt 0:00:15]} 29. b4 {[%emt 0:00:30]} g5 {[%emt 0:08:10]} 30. Nf7 {[%emt 0:07:03]} g4 {[%emt 0:01:21]} 31. Nh6 {[%emt 0:00:13]} Bf1+ {[%emt 0:01:54]} 32. Kd4 {[%emt 0:00:37]} Be2 {[%emt 0:00:32]} 33. Kd5 {[%emt 0:02:22]} Bd1 {[%emt 0:11:26]} 34. Ke5 {[%emt 0:02:22]} Bb3 {[%emt 0:09:26]} 35. c5 {[%emt 0:15:12]} Bd1 {[%emt 0:00:15]} 36. Kf4 {[%emt 0:00:05]} Kc6 {[%emt 0:01:10]} 37. Nxg4 {[%emt 0:00:04]} Kb5 {[%emt 0:00:51]} 38. Ne3 {[%emt 0:00:55]} Bb3 {[%emt 0:08:08]} 39. Ke5 {[%emt 0:00:32]} Kxb4 {[%emt 0:00:16]} 40. c6 {[%emt 0:01:03]} Ba4 {[%emt 0:00:08]} 41. Kd6 {[%emt 0:18:57]} Bxc6 {[%emt 0:00:09]} 42. Kxc6 {[%emt 0:00:03]} a5 {[%emt 0:11:02]} 43. Kd5 {[%emt 0:01:32]} a4 {[%emt 0:00:25]} 44. Kd4 {[%emt 0:01:03]} a3 {[%emt 0:04:28]} 45. Nc2+ {[%emt 0:09:22]} Kb3 {[%emt 0:00:15]} 46. Nxa3 {[%emt 0:04:30]} Kxa3 {[%emt 0:00:08]} 47. Ke5 {[%emt 0:00:07]} Kb4 {[%emt 0:00:52]} 48. Kf6 {[%emt 0:00:40]} Kc5 {[%emt 0:00:41]} 49. Kg7 {[%emt 0:00:10]} h5 {[%emt 0:00:39]} 50. Kg6 {[%emt 0:00:19]} h4 {[%emt 0:00:47]} 51. Kg5 {[%emt 0:00:09]} Kd6 {[%emt 0:00:16]} 52. Kxh4 {[%emt 0:00:07]} Ke5 {[%emt 0:00:09]} 1/2-1/2

[Event "SWE-ch Masters Elite 2019"]
[Site "Eskilstuna"]
[Date "2019.07.13"]
[Round "8.4"]
[White "Rydstrom, Tom"]
[Black "Andersson, Tommy"]
[Result "1/2-1/2"]
[ECO "B94"]
[WhiteElo "2345"]
[BlackElo "2390"]
[Annotator "NA"]
[PlyCount "48"]
[EventDate "2019.07.06"]
[EventType "tourn"]
[EventCountry "SWE"]
[SourceTitle "playchess.com"]
[Source "ChessBase"]
[SourceQuality "1"]
[TimeControl "40/5400+30:1800+30"]

1. e4 {[%emt 0:01:37]} c5 {[%emt 0:00:00]} 2. Nf3 {[%emt 0:00:03]} d6 {[%emt 0:00:00]} 3. d4 {[%emt 0:01:26]} cxd4 {[%emt 0:00:00]} 4. Nxd4 {[%emt 0:00:04]} Nf6 {[%emt 0:00:00]} 5. Nc3 {[%emt 0:00:08]} a6 {[%emt 0:00:00]} 6. Bg5 {[%emt 0:00:40]} Nbd7 {[%emt 0:00:17]} 7. Qe2 {[%emt 0:01:20]} h6 {[%emt 0:01:37]} 8. Bh4 {[%emt 0:02:45]} g6 {[%emt 0:04:21]} 9. f4 {[%emt 0:02:55]} e5 {[%emt 0:00:38]} 10. fxe5 {[%emt 0:00:04]} dxe5 {[%emt 0:01:26]} 11. O-O-O {[%emt 0:02:25]} Be7 {[%emt 0:06:42]} 12. Nf3 {[%emt 0:02:50]} Qa5 {[%emt 0:04:43]} 13. Kb1 {[%emt 0:01:33]} Nb6 {[%emt 0:16:29]} 14. Nd5 {[%emt 0:10:05]} Nbxd5 {[%emt 0:17:52]} 15. exd5 {[%emt 0:00:03]} e4 {[%emt 0:03:01]} 16. Bxf6 {[%emt 0:27:16]} Bxf6 {[%emt 0:00:20]} 17. Qxe4+ {[%emt 0:00:04]} Kf8 {[%emt 0:00:10]} 18. Nd4 {[%emt 0:01:19]} Qb6 {[%emt 0:05:06]} 19. Bc4 {[%emt 0:01:37]} Bf5 {[%emt 0:05:52]} 20. Qf4 {[%emt 0:00:05]} Re8 {[%emt 0:00:40]} 21. Bb3 {[%emt 0:10:55]} Re4 {[%emt 0:08:00]} 22. Qb8+ {[%emt 0:00:02]} Re8 {[%emt 0:02:33]} 23. Qf4 {[%emt 0:00:05]} Re4 {[%emt 0:07:13]} 24. Qb8+ {[%emt 0:00:06]} Re8 {[%emt 0:00:08]} 1/2-1/2